Cogmind - Beta 14 @@@ ROGUE MODE // 2024.09.19 @ 02:20:36 Player: Dull Result: Destroyed by G-73 Enforcer with Heavy Laser Performance ------------- Evolutions (8) 4000 Regions Visited (17) 3400 Robots Destroyed (375) 1875 Value Destroyed (13393) 13393 Prototype IDs (40) 800 Alien Tech Used (0) 0 Bonus (7972) 7972 TOTAL SCORE: 31440 Bonus ------- Triggered Max Security 1000 High Alert Combat Kills 2113 Follower Combat Kills 2459 Aligned with FarCom 300 Built Enhanced Grunts 300 A7 Reached Mainframe 300 Met R17 at Cetus 500 Met R17 at Research 2000 Friendly Fire -1000 Cogmind --------- Core Integrity 0/1450 Matter 211/300 Energy 95/100 System Corruption 35% Temperature Cool (0) Movement Core (200) Ox3 Location -2/Testing Parts ------- > --- POWER (2) -------- (None) > --- PROPULSION (6) --- (None) > --- UTILITY (11) ----- (None) > --- WEAPON (4) ------- Heavy Gauss Cannon > --- INVENTORY (5) ---- Advanced Heat Sink Cooled Plasma Cannon Advanced KE Penetrator Heavy Gauss Cannon Lance Peak State ------------ > --- POWER ------------ Quantum Reactor Light Quantum Reactor > --- PROPULSION ------- Centrium Heavy Treads Centrium Heavy Treads Advanced Heavy Siege Treads > --- UTILITY ---------- Advanced Heat Sink Improved Coolant Injector Huge Storage Unit Improved Target Analyzer Core Analyzer Armor Integrity Analyzer Improved Weapon Cycler Layered Heavy Armor Plating Centrium Medium Armor Plating Improved Remote Force Field > --- WEAPON ----------- Linear Accelerator Linear Accelerator Linear Accelerator Linear Accelerator > --- INVENTORY -------- Angular Momentum Engine Neutrino Core Neutrino Core Micro Antimatter Reactor Quantum Reactor Light Quantum Reactor Centrium Wheel Advanced Heat Sink Advanced Heat Sink Advanced Heat Sink Advanced Cooling System Improved Hacking Suite Long-range Tractor Beam Advanced Drone Bay Cooled Plasma Cannon Nova Cannon Heavy Machine Gun Advanced KE Penetrator Heavy Gauss Cannon Heavy Gauss Cannon Hypervelocity Mass Driver Hypervelocity Mass Driver Micro-nuke Launcher Heavy Pick [Rating: 180] Favorites ----------- Power Cooled Ion Engine Engine Cooled Ion Engine Power Core Light Nuclear Core Reactor Antimatter Reactor Propulsion Light Treads Treads Light Treads Leg Aluminum Leg Wheel Armored Huge Wheel Flight Unit Improved Cesium-ion Thruster Utility Huge Storage Unit Device Improved Terrain Scanner Storage Huge Storage Unit Processor Core Analyzer Hackware Hacking Suite Protection Centrium Medium Armor Plating Weapon Heavy Assault Rifle Energy Gun Plasma Rifle Energy Cannon Cooled Plasma Cannon Ballistic Gun Heavy Assault Rifle Ballistic Cannon Light Cannon Launcher Missile Launcher Impact Weapon Heavy Mace Slashing Weapon Power Sword Piercing Weapon Heavy Pick Build | -11 -10 -10 -9 -9 -9 -8 -8 -7 -6 -6 -6 -6 -5 -4 -3 -2 -2 ------- Run | Yrd Mat Min Mat Min Exi Min Mat Fac Fac Ext Cet Arc Fac Fac Res Res Tes Slots Evolved 16 | . . . 2 . . . 2 2 2 . . . 2 2 2 2 . Power 1 | . . . . . . . . . . . . . 1 . . . . Propulsion 4 | . . . . . . . 1 . 1 . . . . . . 2 . Utility 9 | . . . . . . . 1 2 1 . . . 1 2 2 . . Weapon 2 | . . . 2 . . . . . . . . . . . . . . Parts Attached 336 | 3 14 1 31 2 4 8 43 46 23 16 16 13 6 37 24 33 16 Power 57 | . 2 . 1 . 3 1 5 9 5 5 3 1 5 5 2 5 5 Engine 29 | . . . 1 . 3 1 5 7 2 4 2 . 3 . . . 1 Core 15 | . 2 . . . . . . 2 3 1 1 . 1 3 . . 2 Reactor 13 | . . . . . . . . . . . . 1 1 2 2 5 2 Propulsion 61 | 2 4 . 10 2 . 2 15 9 7 4 2 . . 2 . 2 . Treads 44 | 2 4 . 9 2 . 2 14 2 1 3 2 . . 2 . 1 . Leg 2 | . . . . . . . . 2 . . . . . . . . . Wheel 13 | . . . . . . . . 5 6 1 . . . . . 1 . Hover . | . . . . . . . . . . . . . . . . . . Flight 2 | . . . 1 . . . 1 . . . . . . . . . . Utility 99 | 1 3 1 5 . . 1 11 11 3 4 5 4 1 17 15 14 3 Device 40 | 1 . . . . . . 1 2 2 2 1 1 . 9 10 8 3 Storage 6 | . 3 . 1 . . . . . . . . 1 . . . 1 . Processor 7 | . . . . . . . 4 . . . 1 . . 1 . 1 . Hackware 6 | . . . 1 . . . . 2 . 1 . . 1 . 1 . . Protection 40 | . . 1 3 . . 1 6 7 1 1 3 2 . 7 4 4 . Artifact . | . . . . . . . . . . . . . . . . . . Weapon 119 | . 5 . 15 . 1 4 12 17 8 3 6 8 . 13 7 12 8 Energy Gun 3 | . . . . . . . . . 1 1 1 . . . . . . Energy Cannon 12 | . . . . . . . . 1 1 1 . 1 . 3 2 1 2 Ballistic Gun 53 | . 2 . 13 . 1 3 10 5 1 1 3 6 . 7 1 . . Ballistic Cannon 27 | . 3 . . . . . . 5 2 . 1 1 . . 3 8 4 Launcher 14 | . . . 2 . . 1 2 3 1 . . . . 2 1 2 . Special Weapon . | . . . . . . . . . . . . . . . . . . Impact Weapon 4 | . . . . . . . . 3 1 . . . . . . . . Slashing Weapon 2 | . . . . . . . . . 1 . 1 . . . . . . Piercing Weapon 4 | . . . . . . . . . . . . . . 1 . 1 2 Special Melee Weapon . | . . . . . . . . . . . . . . . . . . Unidentified Prototypes 17 | . . . 2 . . . 4 2 1 . 3 1 . 3 . . 1 Corrupted Parts 4 | . . . . . . . . . . . 3 . . 1 . . . System Corruption 13 | . . . . . . . . . . . 12 . . 1 . . . Parts Lost 79 | . . . . . . 4 1 19 13 . . . . 9 1 8 24 Power 11 | . . . . . . . . 2 3 . . . . 1 . 1 4 Propulsion 13 | . . . . . . 1 . 4 4 . . . . . . 1 3 Utility 24 | . . . . . . 1 . 6 1 . . . . 2 1 4 9 Weapon 31 | . . . . . . 2 1 7 5 . . . . 6 . 2 8 Highest Loss Streak 24 | . . . . . . 3 1 9 6 . . . . 5 1 5 24 To Critical Strikes 4 | . . . . . . 1 . . . . . . . 2 . . 1 Average Slot Usage (%) 92 | . 99 100 100 100 100 99 99 82 56 85 79 73 88 87 89 79 39 Engine 5 | . 5 . 8 11 11 11 8 5 . 4 4 . 2 . . . . Core 3 | . 8 14 2 . . . . 1 5 1 1 1 2 1 5 . . Reactor 1 | . . . . . . . . . . . . 4 5 8 2 7 3 Treads 18 | . 27 28 22 22 22 21 26 6 . 13 12 13 11 9 9 12 3 Wheel 1 | . . . . . . . . 9 15 5 . . . . . . 2 Device 5 | . 14 9 . . . . . . 4 12 . . . 14 24 17 4 Storage 9 | . 14 14 11 11 11 11 9 7 6 6 6 6 5 5 4 4 2 Processor 3 | . . . . . . . 7 7 6 6 6 6 5 8 9 11 7 Hackware 4 | . . . 3 11 11 2 . 8 . 5 6 6 11 8 7 . . Protection 6 | . . 4 7 . . 8 10 8 . . 13 19 17 7 4 6 1 Energy Cannon 1 | . . . . . . . . 1 2 6 6 3 5 4 2 1 . Ballistic Gun 21 | . 7 . 41 44 44 43 35 12 3 6 7 9 17 15 1 . . Ballistic Cannon 5 | . 20 28 . . . . . 5 5 . . . . . 8 14 7 Peak Build Rating 180 | 9 14 14 23 23 24 26 41 56 58 75 114 120 133 143 150 180 140 Average Rating 51 | 6 12 13 20 22 23 25 34 47 46 73 97 105 130 138 146 170 78 On Entrance 59 | 6 9 14 12 22 23 24 26 41 44 29 69 113 120 133 107 149 126 Naked Turns 6 | . . . . . . . . . . . . . . . . . 6 Heaviest Build 219 | 12 92 94 107 100 100 106 111 119 117 130 139 142 158 160 192 219 158 Greatest Support 240 | 40 40 40 40 40 40 40 62 60 60 28 160 160 160 160 160 240 160 Greatest Overweight (x) 37 | . 4 2 2 2 2 4 2 37 3 4 4 . . 1 1 1 3 Average Overweight (x) 1 | . 1 2 2 2 2 2 1 3 1 4 . . . . . . . Largest Inventory Capacity 25 | 8 25 25 25 25 25 25 25 25 25 25 25 25 25 25 25 25 25 Average Capacity 24 | 8 23 25 25 25 25 25 25 25 25 25 25 25 25 25 25 25 17 Most Carried 25 | 6 25 25 25 25 25 25 25 25 25 25 25 25 25 25 25 25 23 Average Carried 23 | 3 18 24 24 24 24 24 24 23 18 22 24 24 24 24 21 24 14 Final Capacity 25 | 8 25 25 25 25 25 25 25 25 25 25 25 25 25 25 25 25 5 Final Carried 25 | 3 25 25 25 25 25 25 25 23 23 25 25 25 25 25 25 24 5 Class Distribution -------------------- 22% | Mutant 21% | Scavenger-Gunner 14% | Tank 11% | Skirmisher 9% | Scavenger-Skirmisher 9% | Scavenger-Tank Dominant Class ---------------- Mutant | -10/Materials Mutant | -10/Mines Tank | -9/Materials Scavenger-Gunner | -9/Mines Scavenger-Gunner | -9/Exiles Scavenger-Skirmisher | -8/Mines Skirmisher | -8/Materials Hacker-Skirmisher | -7/Factory Mutant | -6/Factory Scavenger-Skirmisher | -6/Extension Commander-Tank | -6/Cetus Scavenger-Mutant | -6/Archives Scavenger-Tank | -5/Factory Scavenger-Gunner | -4/Factory Scavenger-Gunner | -3/Research Scavenger-Gunner | -2/Research Mutant | -2/Testing Resources | -11 -10 -10 -9 -9 -9 -8 -8 -7 -6 -6 -6 -6 -5 -4 -3 -2 -2 ----------- Run | Yrd Mat Min Mat Min Exi Min Mat Fac Fac Ext Cet Arc Fac Fac Res Res Tes Matter Collected 10513 | 237 544 197 1600 100 40 454 1397 1302 778 286 245 332 156 814 757 872 402 Remotely 1159 | . . . . . . . . 135 . . . . . . 394 337 293 Salvage Created 14187 | 126 634 126 2707 126 . 500 1916 1899 1252 829 73 299 134 1530 1022 831 183 Parts 807 | 6 44 15 181 7 . 25 124 99 53 38 4 20 5 92 43 47 4 Haulers Intercepted 17 | . 2 . 5 . . . 6 . 1 . . . 1 . 2 . . Recyclers Shooed 8 | 1 . . 3 . . . 1 1 1 1 . . . . . . . Parts Field Recycled 7 | . . . . . . . . . 7 . . . . . . . . Retrieved Matter 95 | . . . . . . . . . 95 . . . . . . . . Parts Self-Destructed . | . . . . . . . . . . . . . . . . . . Prevented . | . . . . . . . . . . . . . . . . . . Kills | -11 -10 -10 -9 -9 -9 -8 -8 -7 -6 -6 -6 -6 -5 -4 -3 -2 -2 ------- Run | Yrd Mat Min Mat Min Exi Min Mat Fac Fac Ext Cet Arc Fac Fac Res Res Tes Combat Hostiles Destroyed 265 | . 14 8 50 3 . 13 35 40 23 15 1 . 1 25 13 21 3 Melee 2 | . . . . . . . . 1 . . . . . . . 1 . Guns 139 | . 8 . 44 3 . 9 35 17 3 5 1 . 1 12 1 . . Cannons 71 | . 6 7 . . . . . 11 12 7 . . . 9 6 10 3 AOE 42 | . . . 6 . . 4 . 7 7 . . . . 3 6 9 . Classes Destroyed 20 | 2 5 1 6 . . . 1 2 1 . . 1 . . 1 . . Worker 16 | . . . 2 . . 1 2 4 1 . . . . 1 3 2 . Builder 25 | . . . 9 . . . . 1 . 1 . . . 1 6 7 . Tunneler 7 | 3 . . 1 . . 1 1 1 . . . . . . . . . Hauler 17 | . 2 . 5 . . . 6 . 1 . . . 1 . 2 . . Recycler 14 | 1 1 . 5 . . . 1 3 2 . . . . 1 . . . Mechanic 3 | . . . 1 . . . . 1 1 . . . . . . . . Operator 15 | . 2 . 2 . . . 2 1 2 2 . 4 . . . . . Watcher 12 | . 3 . 5 . . . . 1 1 . . . . . . 2 . Swarmer 64 | . 6 6 17 . . 4 10 . 4 4 . . 1 2 1 9 . Saboteur 1 | . . . . . . . . . 1 . . . . . . . . Grunt 117 | . 8 . 20 3 . 7 17 23 14 9 . . . 2 6 6 2 Brawler 4 | . . . 1 . . 2 . . . . . . . . . . 1 Duelist 6 | . . . 1 . . . . 1 2 . . . . 2 . . . Protector 1 | . . . 1 . . . . . . . . . . . . . . Sentry 28 | . . 2 10 . . . 6 4 . 2 . . . 3 1 . . Specialist 10 | . . . . . . . 2 6 . . . . . . . 2 . Hunter 6 | . . . . . . . . . . . . . . 4 2 . . Programmer 24 | . . . . . . . . 5 2 . . . . 12 2 3 . Heavy 2 | . . . . . . . . 1 . . . . . . . 1 . Behemoth 1 | . . . . . . . . . . . . . . . 1 . . Cetus Guard 1 | . . . . . . . . . . . 1 . . . . . . Enhanced Grunt 1 | . . . . . . . . . . . . 1 . . . . . Guerrilla 1 | . . . . . . . . . . . . 1 . . . . . Best Kill Streak 14 | 1 3 3 9 3 . 6 6 10 7 4 1 2 1 6 8 14 2 Combat Bots Only 10 | . 3 3 8 3 . 6 4 10 6 4 1 . 1 6 6 7 2 Max Kills in Single Turn 5 | 1 2 1 4 1 . 2 2 4 5 1 1 2 1 2 2 4 1 Gunslinging 1 | . 1 . 1 . . 1 1 1 . . . . . . . . . Exploded 4 | . . . 3 . . 1 . 2 4 . . . . 2 2 4 . Melee 1 | . . . . . . . . 1 . . . . . . . 1 . Uniques/NPCs Destroyed . | . . . . . . . . . . . . . . . . . . Combat | -11 -10 -10 -9 -9 -9 -8 -8 -7 -6 -6 -6 -6 -5 -4 -3 -2 -2 -------- Run | Yrd Mat Min Mat Min Exi Min Mat Fac Fac Ext Cet Arc Fac Fac Res Res Tes Hostile Shots Fired 1883 | . 27 32 129 10 . 57 118 496 159 91 25 5 27 153 78 215 261 Missed 591 | . 9 10 38 3 . 13 42 166 40 34 7 . 9 53 35 70 62 Damage Taken 24179 | . 219 210 1121 83 . 785 1320 4345 2636 862 464 121 534 2159 840 3876 4604 Core 3644 | . 38 48 196 22 . 49 146 612 699 114 24 . 50 97 90 207 1252 Absorbed by Shields 1058 | . . . . . . . . . . 84 143 . . . 162 669 . Reduced by Siege Mode 57 | . . . . . . . . . . . . . . . 57 . . Regen/Repaired (Parts) 583 | . 126 . . . . . 133 43 . 281 . . . . . . . Core Remaining (%) 62 | 100 . 65 . . . 33 73 12 . . . 1 95 91 93 . . Volleys Fired 671 | 17 37 16 122 5 . 23 77 92 50 51 8 10 11 63 29 44 16 Largest 4 | 2 2 2 4 4 . 4 4 4 3 3 3 4 4 4 3 4 3 Hottest 298 | 70 70 70 92 92 . 92 94 148 124 140 140 208 138 138 219 298 229 Shots Fired 1871 | 34 74 32 410 20 . 84 300 250 100 107 23 33 32 171 67 104 30 Gun 1323 | 34 41 . 402 20 . 80 300 165 31 56 15 26 22 118 13 . . Cannon 503 | . 33 32 . . . . . 77 66 51 8 7 10 51 44 94 30 Launcher 45 | . . . 8 . . 4 . 8 3 . . . . 2 10 10 . Special . | . . . . . . . . . . . . . . . . . . Kinetic 1586 | 17 74 32 402 20 . 80 300 228 88 29 9 26 22 118 38 84 19 Thermal 240 | 17 . . . . . . . 14 9 78 14 7 10 51 19 10 11 Explosive 45 | . . . 8 . . 4 . 8 3 . . . . 2 10 10 . Electromagnetic . | . . . . . . . . . . . . . . . . . . Robot Hit Streak 21 | 7 13 13 17 6 . 7 21 10 11 13 4 3 3 10 5 16 5 Robot Miss Streak 6 | 3 2 3 5 2 . 3 5 4 5 4 3 2 4 6 5 4 1 Penetration Max 1 | . . . . . . . . . 1 . . 1 1 1 1 1 . Secondary Targets 31 | . 1 . 8 1 . 5 7 8 . . . . . 1 . . . Max Gunslinging Chain 2 | . 1 . 2 1 . 2 1 2 . . . . . 1 . . . Shots Hit Robots 1083 | 20 45 20 232 11 . 49 196 155 60 62 13 18 12 80 30 62 18 Core Hits 615 | 7 26 6 111 5 . 25 90 86 51 30 7 12 4 51 34 61 9 Critical Kills 26 | . . . . . . 1 . 3 1 2 1 2 . 6 2 8 . Critical Parts Destroyed 22 | . . . 1 . . . . 2 . . . 2 3 4 7 3 . Critical Strikes 65 | 1 . 2 1 . . 1 . 7 3 4 3 4 3 10 12 13 1 Burn 5 | 1 . . . . . . . . . 2 2 . . . . . . Meltdown 8 | . . . . . . . . 3 1 2 . . . 1 . 1 . Destroy 42 | . . . 1 . . 1 . 1 . . 1 4 3 9 12 10 . Blast 9 | . . 2 . . . . . 2 2 . . . . . . 2 1 Smash 1 | . . . . . . . . 1 . . . . . . . . . Melee Attacks 77 | . . . . . . . . 33 6 1 2 . . 3 . 3 29 Impact 37 | . . . . . . . . 33 4 . . . . . . . . Slashing 5 | . . . . . . . . . 2 1 2 . . . . . . Piercing 35 | . . . . . . . . . . . . . . 3 . 3 29 Sneak Attacks 8 | . . . . . . . . 4 1 1 2 . . . . . . Combat Hostiles 1 | . . . . . . . . . . 1 . . . . . . . Follow-up Attacks . | . . . . . . . . . . . . . . . . . . Damage Inflicted 35534 | 200 761 377 4822 178 . 1110 3221 6088 3193 1925 509 622 328 3761 3385 4224 830 Guns 14700 | 200 438 . 3801 178 . 763 3221 1811 503 754 206 438 227 1898 262 . . Cannons 10290 | . 316 377 . . . . . 1846 1581 1078 191 184 101 889 1014 1910 803 Explosions 9686 | . . . 1021 . . 347 . 1963 982 . . . . 974 2109 2290 . Melee 812 | . . . . . . . . 468 127 78 112 . . . . . 27 Ramming 46 | . 7 . . . . . . . . 15 . . . . . 24 . Kinetic 19214 | 99 754 377 3801 178 . 763 3221 2661 1553 419 141 438 227 1898 640 1665 379 Thermal 7536 | 101 . . . . . . . 2072 1215 1413 256 184 101 889 636 245 424 Explosive 7886 | . . . 1021 . . 347 . 847 298 . . . . 974 2109 2290 . Electromagnetic 40 | . . . . . . . . 40 . . . . . . . . . Impact 530 | . . . . . . . . 468 62 . . . . . . . . Slashing 255 | . . . . . . . . . 65 78 112 . . . . . . Piercing 27 | . . . . . . . . . . . . . . . . . 27 Highest Corruption 35 | . . . . . . 13 1 6 2 2 14 14 . 13 1 14 35 Average Corruption 6 | . . . . . . 12 1 2 1 2 12 14 . 5 1 6 24 Corruption Purged . | . . . . . . . . . . . . . . . . . . Corruption Blocked . | . . . . . . . . . . . . . . . . . . Effects 300 | . . . . . . 71 2 37 5 22 32 51 . 45 14 4 17 Message Errors 72 | . . . . . . 16 1 10 . 8 4 9 . 14 3 3 4 Matter Fused 66 | . . . . . . 14 1 10 3 4 5 13 . 13 1 . 2 Heat Flow Errors 39 | . . . . . . 8 . 3 . 3 10 5 . 5 4 . 1 Energy Discharges 32 | . . . . . . 10 . 5 1 1 6 4 . 3 2 . . Parts Rejected 7 | . . . . . . 1 . 2 1 1 . . . 1 . 1 . Parts Fused 3 | . . . . . . 2 . . . . . . . . . . 1 Data Loss (minor) 32 | . . . . . . 4 . 3 . 3 4 10 . 3 2 . 3 Data Loss (major) 7 | . . . . . . 3 . . . . . 1 . . 1 . 2 Misfires 23 | . . . . . . 10 . 1 . 2 2 3 . 4 1 . . Alerts 9 | . . . . . . 3 . 1 . . . 3 . 2 . . . Misdirections 1 | . . . . . . . . . . . . . . . . . 1 Weapon Failures 9 | . . . . . . . . 2 . . 1 3 . . . . 3 Overload Shots 9 | . . . . . . . . . . . . 2 . . 7 . . Overflow Damage 1137 | . . 2 8 . . . . 447 184 32 19 1 . 54 276 114 . Projectiles 435 | . . 2 . . . . . 115 167 32 . 1 . . 73 45 . Explosions 410 | . . . 8 . . . . 71 5 . . . . 54 203 69 . Melee 292 | . . . . . . . . 261 12 . 19 . . . . . . Knockbacks 30 | . 4 . . . . . . 5 8 . . . . . 3 7 3 Impact 2 | . . . . . . . . 1 1 . . . . . . . . Kinetic 27 | . 4 . . . . . . 4 7 . . . . . 3 7 2 Secondary 1 | . . . . . . . . . . . . . . . . . 1 Self-Inflicted Damage 913 | . . . . . . 28 . 83 423 7 . . . 237 . 135 . Shots 17 | . . . . . . 1 . 2 7 . . . . 4 . 3 . Rammed 3 | . 1 . . . . . . . . 1 1 . . . . . . Targets Rammed 4 | . 1 . . . . . . . . 1 1 . . . . 1 . Kicked . | . . . . . . . . . . . . . . . . . . Crushed 1 | . . . . . . . . . . . . . . . . 1 . Highest Temperature 612 | 90 84 96 146 64 . 306 336 612 286 196 419 222 234 300 411 243 189 Average Temperature 89 | 35 21 47 37 28 . 117 87 131 108 99 130 70 78 68 101 104 93 Received Heat Transfer 4545 | . 78 27 294 48 . 324 486 1227 751 239 36 . 27 138 27 312 531 Effects 28 | . . . . . . 2 5 7 4 . 5 . . 3 2 . . Shutdowns 2 | . . . . . . . . 1 . . . . . . 1 . . Energy Bleed 6 | . . . . . . 2 1 1 1 . . . . . 1 . . Interference 12 | . . . . . . . 3 . 3 . 3 . . 3 . . . Short Circuit 2 | . . . . . . . 1 . . . 1 . . . . . . Damage (minor) 3 | . . . . . . . . 2 . . 1 . . . . . . Damage (major) 3 | . . . . . . . . 3 . . . . . . . . . Siege Activations 1 | . . . . . . . . . . . . . . . 1 . . Total Turns 20 | . . . . . . . . . . . . . . . 20 . . Longest Duration 20 | . . . . . . . . . . . . . . . 20 . . Robots Corrupted 3 | . . 1 . . . . . 1 1 . . . . . . . . Combat Hostiles 1 | . . 1 . . . . . . . . . . . . . . . Parts Fried 7 | . . 1 . . . . . 5 1 . . . . . . . . Impact Corruptions 9 | . . 1 . . . . . 7 1 . . . . . . . . Robots Melted 10 | . . . . . . . . 4 1 3 . . . 1 . 1 . Combat Hostiles 10 | . . . . . . . . 4 1 3 . . . 1 . 1 . Parts Melted 14 | 1 . . . . . . . 2 1 6 . . . 3 . . 1 Heat Transferred 9486 | 370 . . . . . . . 1920 1060 2625 650 280 150 1200 659 259 313 Parts Sabotaged 8 | . . . . . . . . . 2 . . . . 4 . . 2 Parts Stolen . | . . . . . . . . . . . . . . . . . . Parts Stripped . | . . . . . . . . . . . . . . . . . . Power Chain Reactions . | . . . . . . . . . . . . . . . . . . Alert | -11 -10 -10 -9 -9 -9 -8 -8 -7 -6 -6 -6 -6 -5 -4 -3 -2 -2 ------- Run | Yrd Mat Min Mat Min Exi Min Mat Fac Fac Ext Cet Arc Fac Fac Res Res Tes Peak Influence 1865 | 20 169 126 1177 529 . 170 833 969 751 879 582 377 841 994 610 863 1865 Initial 475 | . 13 4 7 459 . . . 378 462 287 444 162 9 411 475 86 471 Average 309 | 8 27 28 530 211 . 40 264 335 562 374 492 185 191 668 266 351 1634 Maximum Alert Level 5 | . . . 4 2 . . 3 3 3 3 2 1 3 3 2 3 5 Low Security (%) 49 | 100 100 100 16 59 . 100 56 34 . 25 . 65 77 . 34 35 . Level 1 15 | . . . 12 20 . . 12 41 4 46 26 34 1 . 44 40 . Level 2 21 | . . . 35 20 . . 14 14 88 15 73 . 10 64 20 10 . Level 3 11 | . . . 32 . . . 16 10 6 12 . . 10 35 . 13 . Level 4 . | . . . 2 . . . . . . . . . . . . . . Level 5 . | . . . . . . . . . . . . . . . . . . High Security . | . . . . . . . . . . . . . . . . . . Max Security . | . . . . . . . . . . . . . . . . . 99 Sterilizations 1 | . . . 1 . . . . . . . . . . . . . . Squads Dispatched 95 | . 1 . 8 . . . 9 16 9 5 . . 5 16 8 6 12 Investigation 18 | . . . 3 . . . 3 4 1 2 . . 2 2 1 . . Extermination 15 | . . . . . . . . 6 2 . . . 2 4 . 1 . Reinforcement 34 | . 1 . 3 . . . 5 5 1 2 . . . 5 7 5 . Assault 23 | . . . 2 . . . . 1 5 1 . . . 2 . . 12 Garrison 5 | . . . . . . . 1 . . . . . 1 3 . . . Intercept . | . . . . . . . . . . . . . . . . . . Searches Triggered . | . . . . . . . . . . . . . . . . . . Construction Impeded 9 | . . . 1 . . . . . . 1 . . . 3 2 2 . Haulers Reinforced 4 | . . . . . . . . . 1 . . . . . 3 . . Active Scanning Responses . | . . . . . . . . . . . . . . . . . . Cargo Convoy Interrupts . | . . . . . . . . . . . . . . . . . . Stealth | -11 -10 -10 -9 -9 -9 -8 -8 -7 -6 -6 -6 -6 -5 -4 -3 -2 -2 --------- Run | Yrd Mat Min Mat Min Exi Min Mat Fac Fac Ext Cet Arc Fac Fac Res Res Tes Distress Signals 33 | . 2 . 4 . . . 7 4 1 2 2 . 1 . 4 6 . Communications Jammed . | . . . . . . . . . . . . . . . . . . Distress Signals . | . . . . . . . . . . . . . . . . . . Times Spotted 498 | . 20 8 78 3 . 12 55 49 45 44 11 12 19 39 20 37 46 Peak Tracking Total 28 | . 4 3 4 2 . 6 5 5 9 5 5 2 5 8 4 10 28 Tactical Retreats 28 | . . . 2 . . . 7 3 2 3 . . . 2 . 3 6 Traps | -11 -10 -10 -9 -9 -9 -8 -8 -7 -6 -6 -6 -6 -5 -4 -3 -2 -2 ------- Run | Yrd Mat Min Mat Min Exi Min Mat Fac Fac Ext Cet Arc Fac Fac Res Res Tes Traps Triggered 14 | . 2 . 1 . . . 2 3 . 5 . . 1 . . . . Indirectly . | . . . . . . . . . . . . . . . . . . Trap Hack Attempts . | . . . . . . . . . . . . . . . . . . Triggered . | . . . . . . . . . . . . . . . . . . Disarmed 4 | . 4 . . . . . . . . . . . . . . . . Reprogrammed 1 | . . . . . . . . . . 1 . . . . . . . Reused . | . . . . . . . . . . . . . . . . . . Traps Extracted . | . . . . . . . . . . . . . . . . . . Installed . | . . . . . . . . . . . . . . . . . . Triggered . | . . . . . . . . . . . . . . . . . . Machines | -11 -10 -10 -9 -9 -9 -8 -8 -7 -6 -6 -6 -6 -5 -4 -3 -2 -2 ---------- Run | Yrd Mat Min Mat Min Exi Min Mat Fac Fac Ext Cet Arc Fac Fac Res Res Tes Machines Disabled 48 | . 1 . 5 . . 1 . 9 6 1 . 5 4 12 1 1 2 Max in Single Turn 5 | . 1 . 1 . . 1 . 2 5 . . 1 1 3 1 1 1 Garrison Access 6 | . . . . . . . 1 1 . . . . 1 1 2 . . Machines Repaired . | . . . . . . . . . . . . . . . . . . Machines Dismantled . | . . . . . . . . . . . . . . . . . . Machines Sabotaged . | . . . . . . . . . . . . . . . . . . Overloaded Fab Kills . | . . . . . . . . . . . . . . . . . . Hacking | -11 -10 -10 -9 -9 -9 -8 -8 -7 -6 -6 -6 -6 -5 -4 -3 -2 -2 --------- Run | Yrd Mat Min Mat Min Exi Min Mat Fac Fac Ext Cet Arc Fac Fac Res Res Tes Machines Accessed 87 | . 9 1 13 1 2 . 13 8 3 14 1 . 5 9 5 3 . Terminals 60 | . 6 1 10 . . . 8 6 3 13 1 . 3 4 2 3 . Fabricators 3 | . . . . . . . . . . . . . 1 2 . . . Repair Stations 5 | . 1 . . . . . 1 1 . 1 . . . 1 . . . Recycling Units 6 | . 2 . 2 . . . 2 . . . . . . . . . . Scanalyzers 2 | . . . 1 . . . 1 . . . . . . . . . . Garrison Access 8 | . . . . . . . 1 1 . . . . 1 2 3 . . Total Hacks 245 | . 28 1 43 1 2 . 34 23 14 40 2 . 13 20 21 3 . Successful 129 | . 19 1 21 1 2 . 22 13 6 24 1 . 4 7 7 1 . Failed 115 | . 9 . 21 . . . 12 10 8 16 1 . 9 13 14 2 . Catastrophic 12 | . . . 1 . . . 2 2 1 . . . 2 1 2 1 . Database Lockouts 1 | . . . 1 . . . . . . . . . . . . . . Manual 141 | . 23 1 37 . 1 . 20 12 11 15 3 . 8 6 3 1 . Terminals 177 | . 19 1 33 . . . 23 19 14 35 2 . 10 7 11 3 . Fabricators 6 | . . . . . . . . . . . . . 2 4 . . . Repair Stations 19 | . 4 . . . . . 4 3 . 5 . . . 3 . . . Recycling Units 16 | . 5 . 7 . . . 4 . . . . . . . . . . Scanalyzers 5 | . . . 3 . . . 2 . . . . . . . . . . Garrison Access 19 | . . . . . . . 1 1 . . . . 1 6 10 . . Terminal Hacks 53 | . 6 1 9 1 2 . 4 5 4 14 1 . 1 . 4 1 . Record 4 | . . . . . 1 . . . . 2 . . . . 1 . . Robot Analysis 11 | . 5 . 6 . . . . . . . . . . . . . . Open Door 10 | . . . . 1 . . . . 1 7 1 . . . . . . Level Access Points 1 | . . . . . . . . . . . . . 1 . . . . Branch Access Points 2 | . . . . . . . . 1 1 . . . . . . . . Emergency Access Points 2 | . . . . . . . . 1 1 . . . . . . . . Alert Level 5 | . . . . . . . 2 2 . 1 . . . . . . . Unreport Threat 9 | . . . . . . . 2 1 1 2 . . . . 3 . . Disarm Traps 1 | . 1 . . . . . . . . . . . . . . . . Reprogram Traps 1 | . . . . . . . . . . 1 . . . . . . . Dispatch Records 1 | . . . 1 . . . . . . . . . . . . . . Security Status 1 | . . . 1 . . . . . . . . . . . . . . Assault Status 1 | . . . 1 . . . . . . . . . . . . . . Zone Layout 3 | . . 1 . . . . . . . 1 . . . . . 1 . Derelict Proto ID Bank 1 | . . . . . 1 . . . . . . . . . . . . Fabricator Hacks 3 | . . . . . . . . . . . . . . 3 . . . Load Schematic 1 | . . . . . . . . . . . . . . 1 . . . Build 2 | . . . . . . . . . . . . . . 2 . . . Repair Station Hacks 15 | . 4 . . . . . 4 2 . 4 . . . 1 . . . Scan Component 8 | . 2 . . . . . 2 1 . 2 . . . 1 . . . Repair 7 | . 2 . . . . . 2 1 . 2 . . . . . . . Recycling Unit Hacks . | . . . . . . . . . . . . . . . . . . Scanalyzer 4 | . . . 2 . . . 2 . . . . . . . . . . Insert Component 2 | . . . 1 . . . 1 . . . . . . . . . . Analyze 2 | . . . 1 . . . 1 . . . . . . . . . . Garrison Access Hacks 6 | . . . . . . . 1 1 . . . . 1 1 2 . . Seal Access 6 | . . . . . . . 1 1 . . . . 1 1 2 . . Unauthorized Hacks 48 | . 9 . 10 . . . 11 5 2 6 . . 2 2 1 . . Terminals 40 | . 6 . 9 . . . 7 5 2 6 . . 2 2 1 . . Botnet 40 | . 6 . 9 . . . 7 5 2 6 . . 2 2 1 . . Fabricators . | . . . . . . . . . . . . . . . . . . Repair Stations . | . . . . . . . . . . . . . . . . . . Recycling Units 8 | . 3 . 1 . . . 4 . . . . . . . . . . Reject 3 | . 1 . . . . . 2 . . . . . . . . . . Mask 5 | . 2 . 1 . . . 2 . . . . . . . . . . Scanalyzers . | . . . . . . . . . . . . . . . . . . Garrison Access . | . . . . . . . . . . . . . . . . . . Data Cores Recovered . | . . . . . . . . . . . . . . . . . . Used . | . . . . . . . . . . . . . . . . . . Hacking Detections 73 | . 9 1 13 . . . 9 7 3 12 1 . 4 7 5 2 . Full Trace Events 17 | . 1 . 3 . . . 3 2 1 2 . . 2 2 1 . . Feedback Events . | . . . . . . . . . . . . . . . . . . Feedback Blocked . | . . . . . . . . . . . . . . . . . . Robot Schematics Acquired . | . . . . . . . . . . . . . . . . . . Robots Built . | . . . . . . . . . . . . . . . . . . Authchips . | . . . . . . . . . . . . . . . . . . Time . | . . . . . . . . . . . . . . . . . . Total Robot Build Rating . | . . . . . . . . . . . . . . . . . . Part Schematics Acquired 1 | . . . . . . . 1 . . . . . . . . . . Parts Built 2 | . . . . . . . . . . . . . . 2 . . . Authchips . | . . . . . . . . . . . . . . . . . . Time 120 | . . . . . . . . . . . . . . 120 . . . Total Part Build Rating 10 | . . . . . . . . . . . . . . 10 . . . Parts Repaired 7 | . 2 . . . . . 2 1 . 2 . . . . . . . Time 236 | . 52 . . . . . 58 38 . 88 . . . . . . . Parts Recycled . | . . . . . . . . . . . . . . . . . . Recycled Matter . | . . . . . . . . . . . . . . . . . . Retrieved Matter . | . . . . . . . . . . . . . . . . . . Retrieved Components . | . . . . . . . . . . . . . . . . . . Parts Scanalyzed 1 | . . . 1 . . . . . . . . . . . . . . Part Schematics Acquired 1 | . . . . . . . 1 . . . . . . . . . . Parts Damaged . | . . . . . . . . . . . . . . . . . . Bothacking | -11 -10 -10 -9 -9 -9 -8 -8 -7 -6 -6 -6 -6 -5 -4 -3 -2 -2 ------------ Run | Yrd Mat Min Mat Min Exi Min Mat Fac Fac Ext Cet Arc Fac Fac Res Res Tes Used RIF Installer . | . . . . . . . . . . . . . . . . . . Robots Hacked . | . . . . . . . . . . . . . . . . . . Non-combat . | . . . . . . . . . . . . . . . . . . Combat . | . . . . . . . . . . . . . . . . . . Robot Hacks Applied . | . . . . . . . . . . . . . . . . . . Relay Couplers Released 1 | . . . . . . . . . . . . . . 1 . . . Machine Destruction 1 | . . . . . . . . . . . . . . 1 . . . Fabnet Peak Effective % . | . . . . . . . . . . . . . . . . . . Robots Rewired 10 | . . . . . . . . . . 10 . . . . . . . Allies Hacked . | . . . . . . . . . . . . . . . . . . Hacks Repelled . | . . . . . . . . . . . . . . . . . . Allies | -11 -10 -10 -9 -9 -9 -8 -8 -7 -6 -6 -6 -6 -5 -4 -3 -2 -2 -------- Run | Yrd Mat Min Mat Min Exi Min Mat Fac Fac Ext Cet Arc Fac Fac Res Res Tes Total Allies 28 | . . . . 3 . . . . . 20 5 . . . . . . Largest Group 16 | . . . . 3 3 3 . . . 15 16 13 6 2 . . . Highest-Rated Group 942 | . . . . 40 40 40 . . . 578 942 851 371 192 . . . Highest-Rated Ally 159 | . . . . 16 16 16 . . . 159 159 159 96 96 . . . Total Orders 3 | . . . . . . . . . . . . . . 1 2 . . EXPLORE 2 | . . . . . . . . . . . . . . 1 1 . . RETURN 1 | . . . . . . . . . . . . . . . 1 . . Ally Attacks 371 | . . . . . . 12 . . . 195 47 33 74 10 . . . Total Damage 8357 | . . . . . . 102 . . . 2968 1434 888 2604 361 . . . Kills 60 | . . . . . . . . . . 22 11 4 23 . . . . Allies Corrupted . | . . . . . . . . . . . . . . . . . . Allies Melted . | . . . . . . . . . . . . . . . . . . Intel | -11 -10 -10 -9 -9 -9 -8 -8 -7 -6 -6 -6 -6 -5 -4 -3 -2 -2 ------- Run | Yrd Mat Min Mat Min Exi Min Mat Fac Fac Ext Cet Arc Fac Fac Res Res Tes Robot Analysis Total 11 | . 5 . 6 . . . . . . . . . . . . . . Derelict Logs Recovered 3 | . . 1 . 2 . . . . . . . . . . . . . Drone Launches 22 | . . . . . . . . . . 16 . . . 2 2 . 2 Drone Recoveries 2 | . . . . . . . . . . . . . . . 2 . . Exploration | -11 -10 -10 -9 -9 -9 -8 -8 -7 -6 -6 -6 -6 -5 -4 -3 -2 -2 ------------- Run | Yrd Mat Min Mat Min Exi Min Mat Fac Fac Ext Cet Arc Fac Fac Res Res Tes Turns Passed 35869 | 130 3662 2477 6152 1998 983 2662 3598 3296 1292 1659 877 1157 1061 2097 1761 733 274 Spaces Moved 12687 | 49 1148 753 1652 615 304 789 1050 1541 687 686 414 263 479 1010 834 300 113 Core 60 | . . . . . . . . 4 . . . . . . . . 56 Treads 9812 | 49 1148 753 1652 615 304 789 1050 128 . . 381 263 479 1010 834 300 57 Legs . | . . . . . . . . . . . . . . . . . . Wheels 2815 | . . . . . . . . 1409 687 686 33 . . . . . . Hover . | . . . . . . . . . . . . . . . . . . Flight . | . . . . . . . . . . . . . . . . . . Fastest Speed 50 | 160 160 320 320 320 320 320 235 125 108 160 160 160 160 160 160 160 50 Average Speed 230 | 160 290 320 320 320 320 320 246 162 120 160 161 160 160 160 187 164 110 Slowest Speed 1900 | 160 480 320 320 320 320 480 330 1900 145 160 240 160 160 250 245 240 200 Overloaded Moves . | . . . . . . . . . . . . . . . . . . Propulsion Burnouts . | . . . . . . . . . . . . . . . . . . Robots Hopped . | . . . . . . . . . . . . . . . . . . Cave-ins Triggered . | . . . . . . . . . . . . . . . . . . Exploration Rate (%) 58 | 5 99 100 99 100 70 101 68 30 14 78 93 98 14 29 37 7 16 Regions Visited 17 Branch Regions 8 Pre-discovered Areas 2 | . . . . 1 1 . . . . . . . . . . . . Known Exits Taken 4 | . . . 1 . 1 . . . 1 . . . 1 . . . . Unknown Exits Taken 13 | 1 1 1 . 1 . 1 1 1 . 1 1 1 . 1 1 1 . Scrap Searched 3 | . . 1 . 1 . 1 . . . . . . . . . . . Spaces Dug 68 | . . . . . . . . 21 3 . . . 3 7 . 3 31 Terrain Destroyed 919 | . . . 23 . . 39 . 211 153 17 4 4 17 175 111 130 35 Melee 54 | . . . . . . . . 21 3 . . . . 3 . 2 25 Projectile 162 | . . . . . . . . 12 9 17 4 4 17 61 9 19 10 AOE 703 | . . . 23 . . 39 . 178 141 . . . . 111 102 109 . Terrain Rammed . | . . . . . . . . . . . . . . . . . . Walls Destroyed . | . . . . . . . . . . . . . . . . . . Machines Disabled . | . . . . . . . . . . . . . . . . . . Actions | -11 -10 -10 -9 -9 -9 -8 -8 -7 -6 -6 -6 -6 -5 -4 -3 -2 -2 --------- Run | Yrd Mat Min Mat Min Exi Min Mat Fac Fac Ext Cet Arc Fac Fac Res Res Tes Total 17948 | 71 1405 793 2263 634 315 870 1887 2081 1035 1173 614 985 758 1403 991 475 195 Wait 3562 | . 168 14 392 10 5 46 667 321 250 198 133 672 251 258 79 82 16 Move 12670 | 48 1147 752 1651 614 303 788 1049 1540 686 685 413 262 478 1009 833 299 113 Hop . | . . . . . . . . . . . . . . . . . . Pick Up 195 | . 26 5 25 1 1 4 16 20 12 21 16 10 5 12 16 3 2 Fast Attach 79 | 1 5 . 1 . . 1 12 18 6 2 6 7 . 14 2 3 1 Attach 100 | 2 1 . 5 . . 4 3 15 14 10 3 . 2 10 8 8 15 Detach 12 | . 2 . . . . . . 3 2 1 . . . 2 . 1 1 Swap 158 | . 8 1 25 2 4 3 29 13 3 4 7 6 4 13 14 22 . Drop 234 | 3 10 5 42 2 2 1 34 26 6 13 25 18 7 19 10 9 2 Fire 671 | 17 37 16 122 5 . 23 77 92 50 51 8 10 11 63 29 44 16 Melee 77 | . . . . . . . . 33 6 1 2 . . 3 . 3 29 Ram 1 | . . . . . . . . . . 1 . . . . . . . Kick . | . . . . . . . . . . . . . . . . . . Crush 3 | . 1 . . . . . . . . . 1 . . . . 1 . Escape Stasis 40 | . . . . . . . . . . 40 . . . . . . . Rewire 146 | . . . . . . . . . . 146 . . . . . . . Trap . | . . . . . . . . . . . . . . . . . . Miscellaneous . | . . . . . . . . . . . . . . . . . . Route ------- -11/Scrapyard -10/Materials (discovered 6 exits: *Mat x3 / *Min x2 / [Sub]) -10/Mines (discovered 3 exits: *Mat x2 / [*Sub]) -9/Materials (discovered 4 exits: *Mat x3 / *Min) -9/Mines (discovered 3 exits: *Mat x2 / *Exi) -9/Exiles (discovered 2 exits: *Min x2) -8/Mines (discovered 2 exits: *Mat x2) -8/Materials (discovered 2 exits: *Fac x2) -7/Factory (discovered 5 exits: *Fac x2 / *Sto / Low x2) -6/Factory (discovered 4 exits: Low x2 / *Ext x2) -6/Extension (discovered 2 exits: *Fac / *Cet) -6/Cetus (discovered 3 exits: *Fac x2 / *Arc) -6/Archives (discovered 3 exits: *Fac / [*Hub x2]) -5/Factory (discovered 4 exits: *Fac x4) -4/Factory (discovered 2 exits: *Res x2) -3/Research (discovered 2 exits: *Res x2) -2/Research -2/Testing History --------- Turn | Location | Event 5 | -11/Scrapyard | Discovered new exit (range 3) 131 | -11/Scrapyard | Entered Materials 310 | -10/Materials | Build established: Mutant 752 | -10/Materials | Discovered new exit (range 7) 1066 | -10/Materials | Discovered new exit (range 15) 1437 | -10/Materials | Discovered new exit (range 3) 2214 | -10/Materials | Discovered new exit (range 7) 2790 | -10/Materials | Discovered new exit (range 8) 3313 | -10/Materials | Discovered new exit (range 9) 3489 | -10/Materials | Repaired Lgt. Treads 3516 | -10/Materials | Repaired Lgt. Treads 3793 | -10/Materials | Entered Mines 3936 | -10/Mines | YI-UF0 nonchalantly dropped a Grenade Launcher on the ground 5423 | -10/Mines | Joined a pair of Derelicts in attacking an 0b10 outpost 5474 | -10/Mines | Discovered new exit (range 10) 5679 | -10/Mines | Discovered new exit (range 9) 6087 | -10/Mines | Discovered new exit (range 6) 6270 | -10/Mines | Entered Materials 6270 | -9/Materials | Evolved 2 slots: Weapon x2 6271 | -9/Materials | Identified exit to Mines 6581 | -9/Materials | Build established: Tank 7342 | -9/Materials | Destroyed 8 combat bots 7519 | -9/Materials | Discovered new exit (range 8) 8234 | -9/Materials | Discovered new exit (range 10) 9206 | -9/Materials | Central database locked down 10900 | -9/Materials | Build established: Scavenger-Gunner 10947 | -9/Materials | Discovered new exit (range 4) 11870 | -9/Materials | First assault squad dispatched 12001 | -9/Materials | Build established: Gunner 12344 | -9/Materials | Sterilization system engaged 12344 | -9/Materials | Non-combat units ordered to evacuate 12422 | -9/Materials | Entered Mines 12445 | -9/Mines | Learned location of Zion (-6) 12643 | -9/Mines | Found a damaged Exp. Sensor Array with a note attached 12681 | -9/Mines | Core integrity fell below 50% 12701 | -9/Mines | Build established: Scavenger-Gunner 12768 | -9/Mines | Received a Rocket Launcher from a helpful Derelict 13020 | -9/Mines | Discovered new exit (range 13) 13059 | -9/Mines | Deemed a non-threat by the Exiles lab entrance 13059 | -9/Mines | Discovered new exit (range 5) 13208 | -9/Mines | Assisted by bots powering up and referring to "LRC-V3" 13313 | -9/Mines | Discovered new exit (range 9) 13504 | -9/Mines | Learned Materials non-interactive machine intel 13598 | -9/Mines | Found the Drone Emporium 13643 | -9/Mines | Found Prototype Device 14420 | -9/Mines | Entered Exiles 14420 | -9/Exiles | Accompanied by 3 allies 14421 | -9/Exiles | Identified exit to Mines 14500 | -9/Exiles | Met 8R-AWN 14552 | -9/Exiles | Met EX-HEX 14644 | -9/Exiles | Met EX-BIN 14683 | -9/Exiles | Aligned with FarCom system 14686 | -9/Exiles | Given EX-Vault access code 14760 | -9/Exiles | Opened EX-Vault 14786 | -9/Exiles | Found YOLO Cannon 14854 | -9/Exiles | Warned to stay clear of 0b10 Research branches 14950 | -9/Exiles | Met EX-DEC 15360 | -9/Exiles | Discovered exit to Mines (range 14) 15403 | -9/Exiles | Left Exiles lab with YOLO Cannon 15403 | -9/Exiles | Entered Mines 15403 | -8/Mines | Accompanied by 3 allies 15693 | -8/Mines | Build established: Scavenger-Skirmisher 15845 | -8/Mines | Lost 3 allies 15994 | -8/Mines | System corruption reached 10% 16024 | -8/Mines | Lost 3 parts (1u2w) 16577 | -8/Mines | Discovered new exit (range 13) 17507 | -8/Mines | Discovered new exit (range 14) 18065 | -8/Mines | Entered Materials 18065 | -8/Materials | Evolved 2 slots: Propulsion x1, Utility x1 18066 | -8/Materials | Loaded intel: 38 non-interactive machine locations 18173 | -8/Materials | Repaired Lgt. Treads 18207 | -8/Materials | Repaired Hvy. Assault Rifle 18361 | -8/Materials | Build established: Scavenger-Tank 19021 | -8/Materials | Discovered new exit (range 3) 19127 | -8/Materials | Build established: Skirmisher 20604 | -8/Materials | Discovered new exit (range 16) 21006 | -8/Materials | Garrison activated, responded to threat 21663 | -8/Materials | Entered Factory 21663 | -7/Factory | Evolved 2 slots: Utility x2 21951 | -7/Factory | Build established: Hacker-Skirmisher 22043 | -7/Factory | Destroyed 10 combat bots 22046 | -7/Factory | Lost 5 parts (1p2n2w) 22924 | -7/Factory | Repaired Minigun 23230 | -7/Factory | Build established: Skirmisher 23358 | -7/Factory | Identified Bomb Drone Bay 23575 | -7/Factory | Build established: Tank 24168 | -7/Factory | Discovered new exit (range 14) 24191 | -7/Factory | Core integrity fell below 50% 24233 | -7/Factory | Destroyed 8 combat bots 24248 | -7/Factory | Lost 9 parts (1p1n3u4w) 24461 | -7/Factory | Build established: Mutant 24495 | -7/Factory | Discovered new exit (range 9) 24542 | -7/Factory | Discovered new exit (range 13) 24545 | -7/Factory | Identified exit to Storage 24545 | -7/Factory | Identified exit to Lower Caves 24636 | -7/Factory | Core integrity fell below 20% 24863 | -7/Factory | First assault squad dispatched 24959 | -7/Factory | Entered another Factory area 24959 | -6/Factory | Evolved 2 slots: Propulsion x1, Utility x1 25309 | -6/Factory | First assault squad dispatched 25534 | -6/Factory | Lost 6 parts (2p1n1u2w) 25652 | -6/Factory | Identified exit to Lower Caves 25652 | -6/Factory | Identified exit to Extension 25797 | -6/Factory | Core integrity fell below 50% 25985 | -6/Factory | Build established: Skirmisher 26201 | -6/Factory | Lost 3 parts (1n2w) 26225 | -6/Factory | Core integrity fell below 20% 26251 | -6/Factory | Entered Extension 26255 | -6/Extension | Lost 3 parts (1p1n1w) 26428 | -6/Extension | Repaired Arm. Huge Wheel 26483 | -6/Extension | Repaired Hvy. Missile Launcher 26616 | -6/Extension | Rescued a captive Derelict 26665 | -6/Extension | Rescued a captive Derelict 26673 | -6/Extension | Rescued a captive Derelict 26687 | -6/Extension | Build established: Scavenger-Skirmisher 26872 | -6/Extension | Rescued A7 26903 | -6/Extension | Rescued a captive Derelict 26903 | -6/Extension | Rescued a captive Derelict 26938 | -6/Extension | Rescued a captive Derelict 26939 | -6/Extension | Rescued a captive Derelict 26969 | -6/Extension | Spotted B-75 Beast 26969 | -6/Extension | Spotted B-75 Beast 26983 | -6/Extension | Allies destroyed B-75 Beast 27013 | -6/Extension | Lost 17 allies 27446 | -6/Extension | Rescued a captive Derelict 27446 | -6/Extension | Rescued a captive Derelict 27544 | -6/Extension | Build established: Commander-Skirmisher 27623 | -6/Extension | Rescued a captive Derelict 27643 | -6/Extension | Rescued a captive Derelict 27651 | -6/Extension | First assault squad dispatched 27752 | -6/Extension | Lost 4 allies 27871 | -6/Extension | Discovered new exit (range 10) 27872 | -6/Extension | Discovered new exit (range 6) 27910 | -6/Extension | Entered Cetus 27910 | -6/Cetus | Accompanied by 14 allies (A7) 27915 | -6/Cetus | Acquired a Cetus Manufacturing Module code from A7 27932 | -6/Cetus | Spotted Cetus Guard 27932 | -6/Cetus | Spotted Cetus Guard 27934 | -6/Cetus | Spotted Cetus Guard 27936 | -6/Cetus | Spotted Cetus Guard 27936 | -6/Cetus | Allies destroyed Cetus Guard 27945 | -6/Cetus | Allies destroyed Cetus Guard 27947 | -6/Cetus | Allies destroyed Cetus Guard 27952 | -6/Cetus | Allies destroyed Cetus Guard 27981 | -6/Cetus | System corruption reached 10% 27984 | -6/Cetus | Lost 3 allies 28117 | -6/Cetus | Discovered new exit (range 15) 28271 | -6/Cetus | Started Cetus Manufacturing Module 28274 | -6/Cetus | Build established: Commander-Tank 28287 | -6/Cetus | Escorted A7 to Cetus Mainframe 28296 | -6/Cetus | Manufactured an Enhanced Grunt 28321 | -6/Cetus | Manufactured an Enhanced Grunt 28346 | -6/Cetus | Manufactured an Enhanced Grunt 28371 | -6/Cetus | Manufactured an Enhanced Grunt 28396 | -6/Cetus | Manufactured an Enhanced Grunt 28495 | -6/Cetus | Discovered new exit (range 16) 28530 | -6/Cetus | Spotted Cetus Guard 28530 | -6/Cetus | Spotted Cetus Guard 28533 | -6/Cetus | Spotted Cetus Guard 28533 | -6/Cetus | Spotted Cetus Guard 28543 | -6/Cetus | Destroyed Cetus Guard 28545 | -6/Cetus | Allies destroyed Cetus Guard 28552 | -6/Cetus | Allies destroyed Cetus Guard 28553 | -6/Cetus | Allies destroyed Cetus Guard 28559 | -6/Cetus | Discovered new exit (range 16) 28574 | -6/Cetus | Met Revision 17 28660 | -6/Cetus | Security sweep announced 28787 | -6/Cetus | Entered Archives 28787 | -6/Archives | Accompanied by 13 allies (A7) 28792 | -6/Archives | Received a hacking code to weaken MAIN.C 28910 | -6/Archives | Discovered new exit (range 16) 28938 | -6/Archives | Unable to access archive contents 28945 | -6/Archives | Discovered new exit (range 13) 28996 | -6/Archives | Discovered new exit (range 16) 29130 | -6/Archives | Build established: Scavenger-Tank 29593 | -6/Archives | Build established: Scavenger-Mutant 29944 | -6/Archives | Entered Factory 29944 | -5/Factory | Accompanied by 6 allies 29944 | -5/Factory | Evolved 2 slots: Power x1, Utility x1 30045 | -5/Factory | Identified exit to Factory 30175 | -5/Factory | Build established: Scavenger-Tank 30764 | -5/Factory | Garrison activated, responded to threat 31005 | -5/Factory | Entered another Factory area 31005 | -4/Factory | Accompanied by 2 allies 31005 | -4/Factory | Evolved 2 slots: Utility x2 31892 | -4/Factory | Build established: Scavenger-Gunner 32183 | -4/Factory | Fabricated Adv. Heavy Siege Treads (x1) 32291 | -4/Factory | Fabricated Lrg. Storage Unit? 32490 | -4/Factory | Discovered new exit (range 9) 32550 | -4/Factory | Discovered new exit (range 51) 32755 | -4/Factory | First assault squad dispatched 32901 | -4/Factory | Garrison activated, responded to threat 32990 | -4/Factory | System corruption reached 10% 33102 | -4/Factory | Entered Research 33102 | -3/Research | Evolved 2 slots: Utility x2 33104 | -3/Research | Lost 5 parts (1p1u3w) 33302 | -3/Research | Revision forces began assault on 0b10 33337 | -3/Research | Met up with Revision 17++ 33404 | -3/Research | Build established: Scavenger-Tank 33628 | -3/Research | Lost 4 allies 33802 | -3/Research | Research terminal network offline 33908 | -3/Research | Build established: Scavenger-Gunner 34455 | -3/Research | Spotted B-86 Titan 34471 | -3/Research | Destroyed B-86 Titan 34736 | -3/Research | Discovered new exit (range 35) 34757 | -3/Research | Discovered new exit (range 71) 34863 | -3/Research | Entered another Research area 34863 | -2/Research | Evolved 2 slots: Propulsion x2 34990 | -2/Research | Discovered new exit (range 8) 35054 | -2/Research | Lost 3 parts (2u1w) 35072 | -2/Research | Destroyed 7 combat bots 35531 | -2/Research | Spotted B-90 Cyclops 35565 | -2/Research | System corruption reached 10% 35592 | -2/Research | Lost 5 parts (1p1n2u1w) 35596 | -2/Research | Entered Testing 35597 | -2/Testing | Maximum security lockdown engaged 35632 | -2/Testing | Found Prototype Energy Cannon 35717 | -2/Testing | Identified Cld. Nova Cannon 35757 | -2/Testing | Core integrity fell below 50% 35764 | -2/Testing | System corruption reached 30% 35768 | -2/Testing | Core integrity fell below 20% 35796 | -2/Testing | Lost 24 parts (4p3n9u8w) 35844 | -2/Testing | Spotted Investigator 35870 | -2/Testing | Destroyed by G-73 Enforcer with Heavy Laser Last Messages --------------- 35772_ Slug penetrates Wall. 35773_ Wall collapses. 35773_ M-36 Artificer repairs P-80 Master. 35790_ System corrupted: Matter fused (-9). 35797_ ALERT: Assault forces dispatched. 35806_ K 35843_ L-61 Swordsman unfolds itself. 35843_ I-47 Archangel unfolds itself. 35843_ Investigator unfolds itself. 35845_ The unstable cave ceiling collapses. 35845_ G-73 Enforcer crushed by falling debris. 35851_ Dropped Lance. 35853_ Acquired Lance. 35854_ Slug penetrates Earth. 35855_ SLV|GDWOFCFX WEEYB0/#WUHBWLNW/ YJWC=#&Z4 [Achievement: 30k Club] Map ----- +----------------------------------------------------+ | ??????????## #???????????????????????????????????? | | ???????????# #???????????????????????????????????? | | ???????????# ####????????????????????????????????? | | ???????????## # ##???????????????????????????????? | | ????????????## # ##??????????????????????????????? | | ?????????????#### ##?????????????????????????????? | | ????????????????## ##????????????????????????????? | | ?????????????????## ##???????????????????????????? | | ??????????????????## ##??????????????????????????? | | ????????#############"#??????????????????????????? | | ????????# ##??????????????????????????? | | ????????# #???????????????????????????? | | ????????# """ c#???????????????????????????? | | ??????????"""" l##??????????????????????????? | | ??????????"""" p* Cig##?????????????????????????? | | ??????????""" h C #g##????????????????????????? | | ????????/ p C ""#####???????????????????????? | | ??????? # """ ""## ##??????????????????????? | | ????????# """" T"#?## #??????????????????????? | | ????????#?"""" ""#?# #??????????????????????? | | ???????????"" ""#?# #??????????????????????? | | ??????????? ????# ##??????????????????????? | | ??????????#########????## ##?????????????????????? | | ????????????????????????## #?????????????????????? | | ????????????????????????#g##?????????????????????? | | ????????????????????????#@ #?????????????????????? | | ????????????????????????## #?????????????????????? | | ??????????????????????????##?????????????????????? | | ?????????????????????????????????????????????????? | | ?????????????????????????????????????????????????? | | ?????????????????????????????????????????????????? | | ?????????????????????????????????????????????????? | | ??????????o??????????????????????????????????????? | | ?????????????????????????????????????????????????? | | ?????????????????????????????????????????????????? | | ?????????????????????????????????????????????????? | | ?????????????????????????????????????????????????? | | ?????????????????????????????????????????????????? | | ?????????????????????????????????????????????????? | | ?????????????????????????????????????????????????? | | ?????????????????????????????????????????????????? | | ?????????????????????????????????????????????????? | | ?????????????????????????????????????????????????? | | ?????????????????????????????????????????????????? | | ?????????????????????????????????????????????????? | | ?????????????????????????????????????????????????? | | ?????????????????????????????????????????????????? | | ?????????????????????????????????????????????????? | | ?????????????????????????????????????????????????? | | ?????????????????????????????????????????????????? | +----------------------------------------------------+ Best States ------------- Heat Dissipation 80 Coolant Potential 80 Energy Generation 45 Energy Capacity 790 Matter Stores 300 Matter Capacity 300 Sight Range 16 Terrain Scan Range 16 Terrain Scan Density 10 ECM Strength 1 Armor Coverage 1200 Weapon Cycling 20 Phase Shifting 10 Evasion (%) 50 Targeting Accuracy 8 Target Analysis 6 Core Analysis 6 Armor Integrity Analysis 30 Recoil Reduction 6 Kinecelleration 40 Offensive Hacking 20 Defensive Hacking 12 Item Schematics ----------------- Lrg. Storage Unit | -8/Materials | Scanalyzed Robot Schematics ------------------ None Fabricated ------------ Adv. Heavy Siege Treads | x1 | -4/Factory | Preloaded Lrg. Storage Unit | x1 | -4/Factory Alien Tech Used ----------------- None Achievements -------------- 30k Club Main Advantage Revolutionary Research Challenges ------------ None Game ------ Seed TeslaExpertPlating Manual? 0 Play Time 03:22:22 Cumulative 118.4 hours Start 2024.09.18 @ 22:43:48 End 2024.09.19 @ 02:20:36 Sessions 1 Manual Loads 0 Difficulty Rogue Special Mode None Game No. 169 Rogue 169 Adventurer 0 Explorer 0 Win Type - Total 1 Types 1/0/0/0/0/0/0/0/0 Lore% 31 Gallery% 58 Achievement% 46 Wizard Run 0 Options --------- Layout 0 ASCII 0 Keyboard 0 Movement Mouse Keybinds 1 Fullscreen 1 Font 18/TerminusBold Map View 76x50 Zoom Use 0% Tactical HUD 1 Map Filters NONE Filters NONE Steam 1 RUN: 0d7511ac-a40e-4513-b740-030203249248